Cogmind - Beta 16 @@@ ROGUE MODE // 2026.01.08 @ 10:26:40 Player: leto Result: Self-destructed Performance ------------- Evolutions (1) 500 Regions Visited (3) 600 Robots Destroyed (40) 200 Value Destroyed (670) 670 Prototype IDs (2) 40 Alien Tech Used (0) 0 Bonus (28) 28 TOTAL SCORE: 2038 Bonus ------- Follower Combat Kills 47 Friendly Fire -19 Cogmind --------- Core Integrity 16/400 Matter 192/300 Energy 100/100 System Corruption 5% Temperature Cool (0) Movement Rolling (180) Ox6 Location -9/Materials Parts ------- > --- POWER (1) -------- (None) > --- PROPULSION (3) --- Armored Wheel > --- UTILITY (3) ------ Huge Storage Unit > --- WEAPON (2) ------- (None) > --- INVENTORY (25) --- VTOL Module VTOL Module VTOL Module VTOL Module Seismic Detector Grenade Launcher Grenade Launcher Grenade Launcher Rocket Launcher Datajack Peak State ------------ > --- POWER ------------ Light Ion Engine > --- PROPULSION ------- Armored Wheel Armored Wheel > --- UTILITY ---------- High-capacity Storage Unit Shield Generator > --- WEAPON ----------- Heavy EM Pulse Gun Heavy EM Pulse Gun > --- INVENTORY -------- Armored Wheel Armored Wheel Flight Unit Flight Unit VTOL Module VTOL Module VTOL Module VTOL Module Seismic Detector Medium Laser Grenade Launcher Grenade Launcher Rocket Launcher Datajack [Rating: 14] Favorites ----------- Power Ion Engine Engine Ion Engine Propulsion Armored Wheel Treads Light Treads Wheel Armored Wheel Flight Unit Flight Unit Utility Shield Generator Device Shield Generator Storage High-capacity Storage Unit Weapon Medium Laser Energy Gun Medium Laser Launcher Grenade Launcher Special Weapon Mining Laser Build | -11 -10 -10 -9 ------- Run | Yrd Mat Min Mat Slots Evolved 2 | . . . 2 Power . | . . . . Propulsion 1 | . . . 1 Utility 1 | . . . 1 Weapon . | . . . . Parts Attached 24 | 7 6 . 11 Power 2 | 1 . . 1 Engine 2 | 1 . . 1 Core . | . . . . Reactor . | . . . . Propulsion 8 | 2 2 . 4 Treads 2 | 2 . . . Leg . | . . . . Wheel 4 | . 2 . 2 Hover . | . . . . Flight 2 | . . . 2 Utility 6 | 1 4 . 1 Device 1 | . 1 . . Storage 5 | 1 3 . 1 Processor . | . . . . Hackware . | . . . . Protection . | . . . . Artifact . | . . . . Weapon 8 | 3 . . 5 Energy Gun 5 | 3 . . 2 Energy Cannon . | . . . . Ballistic Gun . | . . . . Ballistic Cannon . | . . . . Launcher 2 | . . . 2 Special Weapon 1 | . . . 1 Impact Weapon . | . . . . Slashing Weapon . | . . . . Piercing Weapon . | . . . . Special Melee Weapon . | . . . . Unidentified Prototypes . | . . . . Parts Lost 13 | . . 1 12 Power 2 | . . . 2 Propulsion 5 | . . . 5 Utility 1 | . . . 1 Weapon 5 | . . 1 4 Highest Loss Streak 5 | . . 1 5 To Critical Strikes . | . . . . Average Backups 11 | 1 9 13 13 Power . | . . . . Propulsion 6 | 1 5 8 6 Utility . | . . 1 1 Weapon 3 | . 2 3 4 Tool/Special . | . . . . Unused Backups 16 | . 3 . 13 Power . | . . . . Propulsion 11 | . 3 . 8 Utility 1 | . . . 1 Weapon 3 | . . . 3 Tool/Special 1 | . . . 1 Average Slot Usage (%) 76 | . 97 100 47 Engine 10 | . 13 14 5 Treads 1 | . 3 . . Wheel 23 | . 24 28 19 Device 8 | . 11 14 3 Storage 13 | . 15 14 11 Energy Gun 18 | . 27 28 6 Peak Build Rating 14 | 6 11 11 14 Average Rating 9 | 5 10 10 8 On Entrance 6 | . 6 11 10 Avg Prop Armor Cover (%) 9 | . . . 9 Naked Turns . | . . . . Heaviest Build 120 | 14 51 51 120 Greatest Support 40 | 40 40 24 24 Greatest Overweight (x) 15 | . 7 2 15 Average Overweight (x) 1 | . 1 2 2 Largest Inventory Capacity 25 | 8 20 20 25 Average Capacity 18 | 7 14 20 22 Most Carried 15 | 2 14 14 15 Average Carried 11 | 1 9 13 13 Final Capacity 25 | 8 20 20 25 Final Carried 14 | 2 13 14 10 Class Distribution -------------------- 100% | Mutant Dominant Class ---------------- Mutant | -10/Materials Mutant | -10/Mines Mutant | -9/Materials Resources | -11 -10 -10 -9 ----------- Run | Yrd Mat Min Mat Matter Collected 627 | 204 135 79 209 Remotely . | . . . . Salvage Created 932 | . 397 16 519 Parts 70 | . 37 3 30 Haulers Intercepted 2 | . 1 . 1 Recyclers Shooed . | . . . . Parts Field Recycled . | . . . . Retrieved Matter . | . . . . Parts Self-Destructed . | . . . . Prevented . | . . . . Parts Restored . | . . . . Kills | -11 -10 -10 -9 ------- Run | Yrd Mat Min Mat Combat Hostiles Destroyed 29 | . 11 1 17 Guns 17 | . 11 1 5 AOE 12 | . . . 12 Classes Destroyed 11 | . 7 . 4 Worker 2 | . 1 . 1 Builder 2 | . 2 . . Hauler 2 | . 1 . 1 Recycler 1 | . . . 1 Mechanic 1 | . . . 1 Operator 1 | . 1 . . Watcher 2 | . 1 . 1 Swarmer 19 | . 9 1 9 Grunt 8 | . 2 . 6 Duelist 1 | . . . 1 Sentry 1 | . . . 1 Best Kill Streak 7 | . 6 1 7 Combat Bots Only 5 | . 5 1 5 Max Kills in Single Turn 3 | . 2 1 3 Gunslinging . | . . . . Exploded 3 | . . . 3 Melee . | . . . . Uniques/NPCs Destroyed . | . . . . Combat | -11 -10 -10 -9 -------- Run | Yrd Mat Min Mat Hostile Shots Fired 163 | . 38 11 114 Missed 44 | . 10 2 32 Hits 119 | . 28 9 82 Projectile 119 | . 28 9 82 Critical Strikes 4 | . . 1 3 Damage Taken 1380 | . 213 73 1094 Core 465 | . 57 24 384 Absorbed by Shields 183 | . 88 29 66 Core Remaining (%) 83 | 100 . 67 . Volleys Fired 71 | . 20 2 49 Largest 2 | . 2 2 2 Hottest 90 | . 90 90 90 Shots Fired 103 | . 40 5 58 Gun 83 | . 40 5 38 Cannon . | . . . . Launcher 20 | . . . 20 Special . | . . . . Kinetic . | . . . . Thermal 42 | . 20 2 20 Explosive 20 | . . . 20 Electromagnetic 41 | . 20 3 18 Robot Hit Streak 13 | . 8 2 13 Robot Miss Streak 4 | . 1 2 4 Penetration Max . | . . . . Secondary Targets 1 | . 1 . . Max Gunslinging Chain 1 | . 1 . . Shots Hit Robots 63 | . 26 2 35 Core Hits 58 | . 19 1 38 Critical Kills . | . . . . Critical Parts Destroyed . | . . . . Critical Strikes 1 | . . . 1 Burn 1 | . . . 1 Melee Attacks . | . . . . Impact . | . . . . Slashing . | . . . . Piercing . | . . . . Sneak Attacks . | . . . . Combat Hostiles . | . . . . Follow-up Attacks . | . . . . Damage Inflicted 1719 | 5 390 32 1292 Guns 714 | . 354 25 335 Cannons . | . . . . Explosions 934 | . 27 . 907 Melee . | . . . . Ramming 71 | 5 9 7 50 Kinetic . | . . . . Thermal 431 | . 151 . 280 Explosive 838 | . . . 838 Electromagnetic 379 | . 230 25 124 Impact . | . . . . Slashing . | . . . . Piercing . | . . . . Highest Corruption 5 | . 4 4 5 Average Corruption 3 | . 2 4 5 Corruption Purged . | . . . . Corruption Blocked . | . . . . Effects 17 | . 9 8 . Message Errors 3 | . 3 . . Matter Fused 5 | . 3 2 . Heat Flow Errors 3 | . 1 2 . Energy Discharges 2 | . . 2 . Data Loss (minor) 2 | . 1 1 . Data Loss (major) 1 | . 1 . . Misfires 1 | . . 1 . Overload Shots . | . . . . Overflow Damage 18 | . . . 18 Projectiles . | . . . . Explosions 18 | . . . 18 Melee . | . . . . Knockbacks 1 | . . . 1 Impact 1 | . . . 1 Kinetic . | . . . . Secondary . | . . . . Self-Inflicted Damage 277 | . 18 3 256 Shots 10 | . 1 . 9 Rammed 9 | 1 2 1 5 Targets Rammed 9 | 1 2 1 5 Kicked . | . . . . Crushed . | . . . . Highest Temperature 226 | . 226 218 105 Average Temperature 55 | . 67 93 27 Received Heat Transfer 345 | . 16 41 288 Siege Activations . | . . . . Martial Activations . | . . . . Shielding Activations . | . . . . Robots Disrupted . | . . . . Combat Hostiles . | . . . . Robots Corrupted . | . . . . Combat Hostiles . | . . . . Parts Fried . | . . . . Impact Corruptions . | . . . . Robots Melted . | . . . . Combat Hostiles . | . . . . Parts Melted 1 | . . . 1 Heat Transferred 1223 | . 420 . 803 Parts Sabotaged . | . . . . Parts Stolen . | . . . . Parts Stripped . | . . . . Power Chain Reactions 2 | . 1 . 1 Alert | -11 -10 -10 -9 ------- Run | Yrd Mat Min Mat Maximum Alert Level 1 | . . . 1 Low Security (%) 90 | 100 100 100 75 Level 1 9 | . . . 24 Level 2 . | . . . . Level 3 . | . . . . Level 4 . | . . . . Level 5 . | . . . . High Security . | . . . . Max Security . | . . . . Peak Influence 294 | . 159 50 294 Initial . | . . . . Average 71 | . 51 6 130 Influence Increases 1135 | . 328 58 749 Destroy 0b10 Robot/C 640 | . 220 20 400 Destroy 0b10 Robot/NC 70 | . 30 . 40 Destroy Leader 120 | . 44 . 76 Allied During Kill 12 | . . . 12 Successful Hack 62 | . 31 8 23 Disable Machine 30 | . . . 30 Destroy Structure 81 | . 3 . 78 Lose Combat Pursuer 120 | . . 30 90 Influence Decreases 883 | . 328 58 497 Time Decay 585 | . 190 58 337 Lost Part 120 | . . . 120 Lost Ally 40 | . . . 40 Purge Threat 138 | . 138 . . Squads Dispatched 2 | . 1 . 1 Investigation 2 | . 1 . 1 Extermination . | . . . . Reinforcement . | . . . . Assault . | . . . . Garrison . | . . . . Intercept . | . . . . Searches Triggered . | . . . . Construction Impeded . | . . . . Haulers Reinforced . | . . . . Active Scanning Responses . | . . . . Cargo Convoy Interrupts . | . . . . Stealth | -11 -10 -10 -9 --------- Run | Yrd Mat Min Mat Distress Signals 2 | . 1 . 1 Communications Jammed . | . . . . Distress Signals . | . . . . Times Spotted 55 | . 17 5 33 Peak Tracking Total 5 | . 5 3 5 Tactical Retreats 5 | . . 1 4 Traps | -11 -10 -10 -9 ------- Run | Yrd Mat Min Mat Traps Triggered 9 | . 8 . 1 Indirectly . | . . . . Trap Hack Attempts . | . . . . Triggered . | . . . . Disarmed . | . . . . Reprogrammed . | . . . . Reused . | . . . . Traps Extracted . | . . . . Installed . | . . . . Triggered . | . . . . Machines | -11 -10 -10 -9 ---------- Run | Yrd Mat Min Mat Machines Disabled 2 | . . . 2 Max in Single Turn 2 | . . . 2 Machines Repaired . | . . . . Machines Dismantled . | . . . . Machines Sabotaged . | . . . . Overloaded Fab Kills . | . . . . Hacking | -11 -10 -10 -9 --------- Run | Yrd Mat Min Mat Machines Accessed 11 | . 7 1 3 Terminals 11 | . 7 1 3 Fabricators . | . . . . Repair Stations . | . . . . Recycling Units . | . . . . Scanalyzers . | . . . . Garrison Access . | . . . . Total Hacks 25 | . 18 2 5 Successful 14 | . 8 1 5 Failed 11 | . 10 1 . Catastrophic 2 | . 1 1 . Database Lockouts . | . . . . Manual 21 | . 14 2 5 Terminals 25 | . 18 2 5 Fabricators . | . . . . Repair Stations . | . . . . Recycling Units . | . . . . Scanalyzers . | . . . . Garrison Access . | . . . . Terminal Hacks 4 | . 2 1 1 Prototype ID Bank 1 | . 1 . . Branch Access Points 1 | . . 1 . Unreport Threat 1 | . 1 . . Locate Traps 1 | . . . 1 Fabricator Hacks . | . . . . Repair Station Hacks . | . . . . Recycling Unit Hacks . | . . . . Scanalyzer . | . . . . Garrison Access Hacks . | . . . . Unauthorized Hacks 10 | . 6 . 4 Terminals 10 | . 6 . 4 Botnet 9 | . 6 . 3 Operators 1 | . . . 1 Fabricators . | . . . . Repair Stations . | . . . . Recycling Units . | . . . . Scanalyzers . | . . . . Garrison Access . | . . . . Data Cores Recovered 1 | . 1 . . Used . | . . . . Hacking Detections 7 | . 5 1 1 Full Trace Events 1 | . 1 . . Feedback Events . | . . . . Feedback Blocked . | . . . . Robot Schematics Acquired . | . . . . Robots Built . | . . . . Authchips . | . . . . Time . | . . . . Total Robot Build Rating . | . . . . Part Schematics Acquired . | . . . . Parts Built . | . . . . Authchips . | . . . . Time . | . . . . Total Part Build Rating . | . . . . Part Studies Acquired . | . . . . Parts Repaired . | . . . . Time . | . . . . Parts Recycled . | . . . . Recycled Matter . | . . . . Retrieved Matter . | . . . . Retrieved Components . | . . . . Parts Scanalyzed . | . . . . Part Schematics Acquired . | . . . . Parts Damaged . | . . . . Bothacking | -11 -10 -10 -9 ------------ Run | Yrd Mat Min Mat Used RIF Installer . | . . . . Robots Hacked . | . . . . Non-combat . | . . . . Combat . | . . . . Robot Hacks Applied . | . . . . Relay Couplers Released . | . . . . Fabnet Peak Effective % . | . . . . Robots Rewired . | . . . . Allies Hacked . | . . . . Hacks Repelled . | . . . . Allies | -11 -10 -10 -9 -------- Run | Yrd Mat Min Mat Total Allies 3 | . . 3 . Largest Group 3 | . . 3 2 Highest-Rated Group 40 | . . 40 24 Highest-Rated Ally 16 | . . 16 16 Total Orders . | . . . . Ally Attacks 22 | . . 1 21 Total Damage 213 | . . 14 199 Kills 6 | . . . 6 Allies Corrupted . | . . . . Allies Melted . | . . . . Intel | -11 -10 -10 -9 ------- Run | Yrd Mat Min Mat Active Infowar (turns) . | . . . . Robot Analysis Total . | . . . . Derelict Logs Recovered 1 | . . 1 . Drone Launches . | . . . . Drone Recoveries . | . . . . Exploration | -11 -10 -10 -9 ------------- Run | Yrd Mat Min Mat Turns Passed 2019 | 115 687 401 816 Spaces Moved 1419 | 72 517 328 502 Core 15 | 12 2 . 1 Treads 100 | 60 40 . . Legs . | . . . . Wheels 1304 | . 475 328 501 Hover . | . . . . Flight . | . . . . Fastest Speed 50 | 50 90 120 105 Average Speed 121 | 141 111 120 130 Slowest Speed 800 | 160 400 120 800 Overloaded Moves . | . . . . Propulsion Burnouts . | . . . . Robots Hopped . | . . . . Potential Cave-ins . | . . . . Cave-ins Triggered . | . . . . Exploration Rate (%) 51 | 6 71 75 53 Regions Visited 3 Branch Regions 1 Pre-discovered Areas 1 | . . 1 . Known Exits Taken . | . . . . Unknown Exits Taken 3 | 1 1 1 . Scrap Searched 1 | . . 1 . Spaces Dug . | . . . . Terrain Destroyed 93 | . 3 . 90 Melee . | . . . . Projectile . | . . . . AOE 93 | . 3 . 90 Terrain Rammed . | . . . . Walls Destroyed . | . . . . Machines Disabled . | . . . . Actions | -11 -10 -10 -9 --------- Run | Yrd Mat Min Mat Total 1598 | 81 581 331 605 Wait 26 | . 8 . 18 Move 1416 | 71 516 327 502 Hop . | . . . . Pick Up 24 | 2 14 1 7 Fast Attach 20 | 6 11 . 3 Attach 10 | . . . 10 Detach 4 | . . . 4 Swap 7 | 1 5 . 1 Drop 11 | . 5 . 6 Fire 71 | . 20 2 49 Melee . | . . . . Ram 8 | . 2 1 5 Kick . | . . . . Crush 1 | 1 . . . Escape Stasis . | . . . . Rewire . | . . . . Trap . | . . . . Miscellaneous . | . . . . Route ------- -11/Scrapyard -10/Materials (discovered 4 exits: *Mat x2 / *Min x2) -10/Mines -9/Materials (discovered 3 exits: [*Mat] / [*Min x2]) History --------- Turn | Location | Event 23 | -11/Scrapyard | Discovered new exit (range 16) 116 | -11/Scrapyard | Entered Materials 224 | -10/Materials | Discovered new exit (range 14) 340 | -10/Materials | Build established: Mutant 343 | -10/Materials | Discovered new exit (range 14) 432 | -10/Materials | Discovered new exit (range 16) 474 | -10/Materials | Discovered new exit (range 7) 803 | -10/Materials | Entered Mines 812 | -10/Mines | Met a Derelict bent on vengeance 898 | -10/Mines | Assisted by bots powering up and referring to "LRC-V3" 957 | -10/Mines | Learned location of Mines (-8) 989 | -10/Mines | Received a Rocket Launcher from a helpful Derelict 1196 | -10/Mines | Discovered new exit (range 8) 1204 | -10/Mines | Entered Materials 1204 | -9/Materials | Accompanied by 2 allies 1204 | -9/Materials | Evolved 2 slots: Propulsion x1, Utility x1 1204 | -9/Materials | Discovered new exit (range 15) 1465 | -9/Materials | Discovered new exit (range 16) 1596 | -9/Materials | Core integrity fell below 50% 1627 | -9/Materials | Lost 5 parts (1p2n2w) 1840 | -9/Materials | Discovered new exit (range 13) 1967 | -9/Materials | Core integrity fell below 20% 2015 | -9/Materials | Lost 3 parts (2n1w) 2020 | -9/Materials | Self-destructed Last Messages --------------- Slammed into M-13 Machinist. Arm. Wheel destroyed. Mining Laser destroyed. Slammed into K-01 Serf. Triggered Alarm Trap. An alarm sounds. ALERT: Alarm triggered, dispatching investigation squad. Slammed into K-01 Serf. Critical hit (Burn: +37). The unstable cave ceiling collapses. Y-45 Defender destroyed. Grenade Launcher destroyed. Flight Unit destroyed. The unstable cave ceiling collapses. Slammed into M-13 Machinist. M-13 Machinist destroyed. Flight Unit destroyed. System corrupted by crushing effect (+5). Acquired 38 matter. Map ----- +----------------------------------------------------+ | ????????????????????????????????????????????# #? | | ???????????????????????????????????????????## ## | | ???????????????????????????????????????????# | | ???????????????????????????????????????????# " | | ???????????????????????????????????????????# % ! | | ???????????????????????????????????????????# < " | | ???????????????????????????????????????????# % % | | | ???????????????????????????????????????????# " | | ???????????????????????????????????????????# | | ???????????????????????????????????????????## ## | | ??????????????????????????######????????????# ## | | ?????????????????????????##!!!!##???????????# | | ?????????????????????????#! !#???????????# | | ?????????###########?????# #??????????## "" | | ?????????# #?????#### #########+## "" | | ?????????# ########## "" | | ?????????# """ + | | ?????????# """"" ########## | | ?????????# """"" #????????# | | ?????????# """"" #????????# #################### | | ?????????# """ #????????# # ! #?????????# | | ???####### #????????# # #?????????? | | ???# #####+############## # """ #?????????? | | ???# # """"" #?????????? | | ???# " + """"" #?????????? | | ???# u @ # """"" #?????????? | | ???# ############+####### # """ #????????? | | ???## ##??????# [ ## # #???????? | | ????# #?#?????# ## # #??????? ? | | ##### ## ####?# ## ##########??????##?? | | T # # ## #??????????????????? | | # #"" """ + ## #??????????????????? | | # #"T """ # ## #??????????????????? | | #"" """ # ## #################### | | "" # ## ! ! | | "" ############+########* ######## | | " % !|= #????????# #???# #??????? | | |= #????????# "" #???# #??????? | | "" |= [ #????????# """#???# #??????? | | """ < #########????????# S"#???# #??????? | | """ #######???????????# #???# #??????? | | # #?#"""#???????????# #???# #??????? | | ##### ###"T"######################## #??????? | | ?# #??????? | | ?# ##### ############## #??????? | | "" """"" """"" """## #???????????? ??????? | | "T """"" """"" R"##+#???????????? ????? | | "" """"" """"" """#?????????????? # #??? | | ## ####?????????????? % #??? | | ?# #????????????????? +??? | +----------------------------------------------------+ Best States ------------- Heat Dissipation 28 Energy Generation 10 Energy Capacity 250 Matter Stores 300 Matter Capacity 300 Sight Range 16 Terrain Scan Density 10 Evasion (%) 50 Recoil Reduction 2 Item Schematics ----------------- None Robot Schematics ------------------ None Fabricated ------------ Nothing Repaired ---------- Nothing Studied --------- None Alien Tech Used ----------------- None Achievements -------------- None Challenges ------------ None Game ------ Seed CargoSlugCanceller Manual? 0 Play Time 00:22:13 Cumulative 10.8 hours Start 2026.01.07 @ 22:00:32 End 2026.01.08 @ 10:26:40 Sessions 2 Manual Loads 0 Difficulty Rogue Special Mode None Game No. 13 Rogue 13 Adventurer 0 Explorer 0 Win Type - Total 0 Types 0/0/0/0/0/0/0/0/0/0 Lore% 3 Gallery% 14 Achievement% 16 Wizard Run 0 Options --------- Layout 1 ASCII 0 Keyboard 1 Movement Vi Keybinds 0 Fullscreen 1 Font 24/Smallcaps Map View 50x40 Zoom Use 0% Tactical HUD 0 Map Filters NONE Filters NONE Steam 1 RUN: 938b35ba-41bb-46ba-8a7c-71388585bfdd